bitfinex/quotes_SOLUSD_20250724
["timestamp","ask_amount","ask_price","bid_price","bid_amount"]
[1753368741268,0.66,188.81,188.75,5.29801324]
[1753368741563,0.66,188.81,188.77,8.64204023]
[1753368741747,13.9681079,188.82,188.77,8.64204023]
[1753368741943,8.64204023,188.79,188.74,8.70204023]
[1753368742160,0.66,188.78,188.74,0.06]
[1753368742471,0.66,188.78,188.74,5.35823432]
[1753368742670,0.66,188.78,188.75,8.64204023]
[1753368742969,0.66,188.77,188.74,0.06]
[1753368743348,0.66,188.76,188.74,0.06]
[1753368743756,0.66,188.75,188.74,0.06]
[1753368743964,0.135851,188.74,188.71,0.06]
[1753368744468,0.135851,188.74,188.73,8.64204023]
[1753368745957,2.7630357,188.77,188.76,26.0]
[1753368746147,0.66,188.84,188.76,8.64204023]
[1753368746481,2.79217248,188.82,188.78,8.64204023]
[1753368746781,0.66,188.81,188.78,8.64204023]
[1753368746964,0.66,188.8,188.77,8.64204023]
[1753368747153,2.79217248,188.82,188.78,8.64204023]
[1753368747478,2.79217248,188.82,188.79,8.64204023]
[1753368747654,3.45217248,188.82,188.79,8.64204023]
[1753368748268,3.45217248,188.82,188.73,39.4364367]
[1753368748269,2.79217248,188.82,188.8,8.64204023]
[1753368748777,2.79217248,188.82,188.74,13.24573487]
[1753368748980,2.79217248,188.82,188.8,8.64204023]
[1753368749161,2.79217248,188.82,188.81,8.64204023]
[1753368749350,0.03,188.82,188.81,8.64204023]
[1753368750152,0.03,188.82,188.81,13.93836987]
[1753368750454,0.03,188.82,188.81,8.64204023]
[1753368750767,0.03,188.82,188.81,13.93836987]
[1753368752956,0.03,188.82,188.81,8.64204023]
[1753368753398,0.69,188.82,188.8,8.64204023]
[1753368753582,0.66,188.81,188.77,5.29742794]
[1753368753787,0.66,188.8,188.72,46.9283]
[1753368754072,0.66,188.8,188.71,16.84468397]
[1753368754073,8.64204023,188.75,188.71,0.06]
[1753368754288,8.64204023,188.73,188.71,0.06]
[1753368754452,8.64204023,188.72,188.71,0.06]
[1753368754654,0.66,188.77,188.71,0.06]
[1753368754959,30.05498496,188.82,188.71,0.06]
[1753368754960,0.03,188.82,188.76,8.64204023]
[1753368755281,0.03,188.82,188.72,17.25900711]
[1753368755688,0.66,188.81,188.72,17.25900711]
[1753368755899,0.66,188.81,188.78,8.64204023]
[1753368756185,0.66,188.81,188.72,17.25900711]
[1753368756364,0.66,188.81,188.79,8.64204023]
[1753368756561,0.03,188.82,188.79,13.93888308]
[1753368756874,0.66,188.81,188.79,8.64204023]
[1753368757083,0.03,188.82,188.79,8.64204023]
[1753368757292,0.66,188.8,188.75,5.29801324]
[1753368757477,0.66,188.79,188.78,8.64204023]
[1753368758195,0.69,188.82,188.78,8.64204023]
[1753368758489,0.66,188.81,188.73,18.54451343]
[1753368758789,0.66,188.81,188.78,8.64204023]
[1753368758984,0.66,188.81,188.73,5.29857468]
[1753368759191,9.30204023,188.81,188.75,8.64204023]
[1753368759367,0.66,188.81,188.76,8.64204023]
[1753368759562,0.03,188.82,188.78,8.64204023]
[1753368759788,0.03,188.82,188.79,8.64204023]
[1753368759988,0.03,188.8,188.74,0.25]
[1753368760176,0.03,188.8,188.79,8.64204023]
[1753368760487,0.03,188.8,188.79,13.93893095]
[1753368760874,0.03,188.8,188.79,14.12893095]
[1753368761076,0.03,188.82,188.79,14.12893095]
[1753368761391,0.03,188.84,188.81,8.64204023]
[1753368761687,1e-08,188.84,188.83,8.64204023]
[1753368762064,1e-08,188.84,188.83,25.71104734]
[1753368762270,1e-08,188.84,188.83,26.4306242]
[1753368762571,0.03,188.88,188.84,17.06900711]
[1753368762782,0.03,188.88,188.87,8.64204023]
[1753368763175,0.03,188.88,188.87,15.18914023]
[1753368764081,0.03,188.88,188.87,41.09018757]
[1753368764395,0.03,188.88,188.87,46.38483468]
[1753368764701,0.03,188.88,188.87,87.24483468]
[1753368765406,0.03,188.88,188.87,46.38483468]
[1753368765592,0.03,188.88,188.87,20.48378734]
[1753368765799,0.03,188.88,188.87,61.32378734]
[1753368766804,0.03,188.88,188.87,69.96582757]
[1753368767191,0.03,188.88,188.87,61.32378734]
[1753368767582,0.03,188.88,188.87,69.96582757]
[1753368767788,0.03,188.88,188.87,70.15582757]
[1753368768307,0.03,188.88,188.87,5.29464711]
[1753368768487,0.03,188.88,188.87,13.93668734]
[1753368769898,0.03,188.88,188.87,5.29464711]
[1753368770209,0.03,188.88,188.87,13.93668734]
[1753368771606,0.03,188.88,188.87,5.29464711]
[1753368771803,0.03,188.88,188.87,13.93668734]
[1753368772312,0.03,188.88,188.87,22.76872757]
[1753368772891,0.03,188.9,188.87,22.76872757]
[1753368773094,0.03,188.9,188.89,8.64204023]
[1753368773807,1e-08,188.92,188.9,16.78468397]
[1753368774011,1e-08,188.92,188.91,25.71104734]
[1753368774311,1e-08,188.92,188.91,32.05924734]
[1753368774699,0.03,188.96,188.92,16.78468397]
[1753368774908,2.75977946,189.03,188.96,18.5224386]
[1753368775208,34.32985138,189.08,189.02,8.64204023]
[1753368775209,0.65,189.07,189.02,8.64204023]
[1753368775423,0.65,189.06,189.05,8.64204023]
[1753368775721,0.65,189.06,188.98,11.32532015]
[1753368776304,0.65,189.06,188.99,40.82]
[1753368776902,23.18,189.08,188.99,40.82]
[1753368776903,23.18,189.08,189.0,5.29100529]
[1753368777221,23.18,189.08,189.07,8.64204023]
[1753368778999,23.18,189.08,189.07,13.93108661]
[1753368779392,23.83,189.08,189.03,40.72]
[1753368779728,23.18,189.08,189.07,8.64204023]
[1753368780325,23.83,189.08,189.07,8.64204023]
[1753368780718,23.83,189.08,189.06,8.64204023]
[1753368780903,0.65,189.07,189.06,8.64204023]
[1753368781300,23.18,189.08,189.06,13.93136636]
[1753368781519,23.18,189.08,189.07,8.64204023]
[1753368781722,23.18,189.08,189.06,5.28932613]
[1753368781899,23.18,189.08,189.07,8.64204023]
[1753368782525,23.83,189.08,189.0,40.62]
[1753368782707,0.65,189.07,189.04,8.64204023]
[1753368783023,0.65,189.06,189.05,8.64204023]
[1753368783417,23.83,189.08,189.05,8.64204023]
[1753368783622,23.18,189.08,189.07,8.64204023]
[1753368784606,23.83,189.08,189.01,22.76487547]
[1753368784807,23.18,189.08,189.01,5.29072535]
[1753368785018,0.65,189.07,189.03,8.64204023]
[1753368785223,23.18,189.08,189.06,8.64204023]
[1753368785421,0.65,189.07,189.06,8.64204023]
[1753368785635,0.65,189.07,189.02,45.89038098]
[1753368785802,0.65,189.07,189.06,8.64204023]
[1753368786001,23.18,189.08,189.06,8.64204023]
[1753368786221,23.18,189.08,189.07,8.64204023]
[1753368786431,23.18,189.08,189.02,45.89038098]
[1753368786640,23.83,189.08,189.06,8.64204023]
[1753368786918,23.83,189.08,189.07,8.64204023]
[1753368787521,29.11883594,189.08,189.01,5.29066988]
[1753368787844,29.11883594,189.08,189.05,8.64204023]
[1753368787845,0.65,189.07,189.05,8.64204023]
[1753368788131,23.18,189.08,189.06,8.64204023]
[1753368788337,23.83,189.08,189.07,8.64204023]
[1753368789026,23.83,189.08,189.01,5.29066988]
[1753368789221,0.67,189.07,189.05,8.64204023]
[1753368789606,5.95912017,189.07,189.04,8.64204023]
[1753368789842,0.67,189.06,189.02,8.64204023]
[1753368790042,0.67,189.06,189.01,8.64204023]
[1753368790334,0.67,189.06,188.98,7.97478576]
[1753368790502,0.67,189.06,189.05,8.64204023]
[1753368790834,23.18,189.08,189.05,8.64204023]
[1753368790835,23.85,189.08,189.05,8.64204023]
[1753368791127,23.85,189.08,189.07,8.64204023]
[1753368791739,23.18,189.08,189.07,8.64204023]
[1753368793035,23.85,189.08,189.01,16.78468397]
[1753368793216,23.85,189.08,189.07,8.64204023]
[1753368793938,23.18,189.08,189.07,8.64204023]
[1753368794244,23.18,189.08,189.07,8.83204023]
[1753368794531,23.18,189.08,189.07,8.64204023]
[1753368794706,23.18,189.08,189.07,8.83204023]
[1753368795133,23.18,189.08,189.07,49.21204023]
[1753368795316,23.18,189.08,189.07,54.50108661]
[1753368795516,23.18,189.08,189.07,63.14312684]
[1753368796020,23.18,189.08,189.07,54.31108661]
[1753368796612,23.18,189.08,189.07,54.50108661]
[1753368797410,23.18,189.08,189.07,54.31108661]
[1753368797611,23.18,189.08,189.07,45.66904638]
[1753368797813,23.18,189.08,189.07,54.31108661]
[1753368798919,23.85,189.08,189.07,8.64204023]
[1753368799520,23.18,189.08,189.07,6.64204023]
[1753368799724,23.18,189.08,189.07,11.93108661]
[1753368800526,23.18,189.08,189.07,5.28904638]
[1753368800730,23.18,189.08,189.07,13.93108661]
[1753368801815,23.18,189.08,189.07,5.28904638]
[1753368802016,23.18,189.08,189.07,13.93108661]
[1753368803228,23.18,189.08,189.07,5.28904638]
[1753368803424,23.85,189.08,189.07,8.64204023]
[1753368803613,23.18,189.08,189.07,5.28904638]
[1753368803813,23.18,189.08,189.07,13.93108661]
[1753368804214,23.21,189.08,189.07,8.64204023]
[1753368804447,23.88,189.08,189.07,8.64204023]
[1753368804620,23.88,189.08,189.06,5.2892911]
[1753368804931,23.88,189.08,189.07,8.64204023]
[1753368805519,23.21,189.08,189.07,25.4267242]
[1753368805722,23.21,189.08,189.07,39.54781081]
[1753368806312,23.21,189.08,189.07,5.28904638]
[1753368806540,23.88,189.08,189.07,8.64204023]
[1753368807013,23.21,189.08,189.07,8.64204023]
[1753368807640,23.21,189.08,189.07,13.93108661]
[1753368809519,23.21,189.08,189.07,8.64204023]
[1753368809715,23.88,189.08,189.07,8.64204023]
[1753368809912,23.21,189.08,189.07,8.64204023]
[1753368810332,23.21,189.08,189.04,5.28988573]
[1753368810640,23.21,189.08,189.07,8.64204023]
[1753368811433,23.21,189.08,189.04,18.51460007]
[1753368811640,23.21,189.08,189.07,5.28904638]
[1753368811831,23.21,189.08,189.07,13.93108661]
[1753368812222,23.21,189.08,189.07,5.28904638]
[1753368812427,23.21,189.08,189.07,13.93108661]
[1753368813139,23.21,189.08,189.07,10.57723999]
[1753368813541,23.21,189.08,189.07,50.83723999]
[1753368814053,23.18,189.16,189.09,0.28432314]
[1753368814229,23.18,189.16,189.15,5.28819361]
[1753368814545,23.85,189.16,189.14,5.28819361]
[1753368815044,23.18,189.16,189.15,5.28819361]
[1753368815633,23.18,189.16,189.12,16.78468397]
[1753368815951,23.18,189.16,189.15,5.28819361]
[1753368816140,23.85,189.16,189.15,5.28819361]
[1753368816339,23.85,189.16,189.13,5.28736847]
[1753368816340,23.85,189.16,189.13,5.28819361]
[1753368816548,0.67,189.15,189.14,5.28819361]
[1753368817046,9.21434641,189.22,189.16,0.28432314]
[1753368817216,23.18,189.24,189.21,51.66854903]
[1753368817419,0.67,189.32,189.24,0.28432314]
[1753368817618,0.67,189.32,189.31,8.59954192]
[1753368817838,0.67,189.32,189.24,5.28429507]
[1753368818015,0.67,189.32,189.29,8.59954192]
[1753368818217,0.67,189.32,189.2,51.81118816]
[1753368818218,14.5516595,189.32,189.2,8.59954192]
[1753368818425,9.26954192,189.31,189.25,8.59954192]
[1753368818625,0.66,189.3,189.26,8.59954192]
[1753368818826,0.66,189.3,189.28,8.59954192]
[1753368819041,0.66,189.29,189.28,8.59954192]
[1753368819231,0.66,189.32,189.28,8.59954192]
[1753368819428,23.18,189.33,189.31,8.59954192]
[1753368819627,23.18,189.33,189.24,0.19]
[1753368819833,23.18,189.33,189.25,5.28401585]
[1753368820331,28.46199272,189.33,189.28,8.59954192]
[1753368820645,8.59954192,189.31,189.2,13.88491754]
[1753368820819,8.59954192,189.31,189.09,34.39816768]
[1753368820820,8.59954192,189.26,189.14,24.94798397]
[1753368821141,8.59954192,189.25,189.19,8.59954192]
[1753368821341,0.66,189.24,189.15,5.28680941]
[1753368821650,9.25954192,189.24,189.12,40.24]
[1753368821843,5.2848536,189.22,189.17,8.59954192]
[1753368822017,13.88439552,189.22,189.17,8.59954192]
[1753368822220,0.66,189.21,189.17,8.59954192]
[1753368822422,9.25954192,189.21,189.15,8.59954192]
[1753368822642,0.66,189.2,189.15,8.59954192]
[1753368822847,0.66,189.23,189.12,5.47751567]
[1753368823142,0.66,189.23,189.19,8.59954192]
[1753368823528,0.66,189.22,189.2,8.59954192]
[1753368823725,5.2835081,189.27,189.21,8.59954192]
[1753368823937,0.66,189.26,189.23,8.59954192]
[1753368824134,0.66,189.25,189.23,8.59954192]
[1753368824340,0.66,189.24,189.16,16.78468397]
[1753368824650,0.66,189.24,189.21,8.59954192]
[1753368824826,0.66,189.24,189.16,5.28652992]
[1753368825026,0.66,189.24,189.2,8.59954192]
[1753368825228,0.66,189.24,189.16,5.28652992]
[1753368825430,0.66,189.24,189.2,8.59954192]
[1753368825628,0.66,189.23,189.16,5.28652992]
[1753368825954,0.66,189.23,189.22,8.59954192]
[1753368826348,0.66,189.23,189.15,18.50383293]
[1753368826549,0.66,189.23,189.2,8.59954192]
[1753368826941,8.59954192,189.26,189.2,8.59954192]
[1753368827252,0.03,189.24,189.19,8.59954192]
[1753368827642,0.03,189.24,189.23,8.59954192]
[1753368828426,0.03,189.24,189.22,8.59954192]
[1753368828646,0.03,189.24,189.23,8.59954192]
[1753368829741,0.03,189.24,189.19,5.28541966]
[1753368829940,0.03,189.24,189.23,8.59954192]
[1753368831137,0.03,189.24,189.2,5.28541226]
[1753368831331,0.03,189.24,189.23,8.59954192]
[1753368831551,0.03,189.24,189.23,13.88411624]
[1753368831753,0.03,189.24,189.23,14.57411624]
[1753368832047,0.03,189.24,189.23,5.28457432]
[1753368832265,0.03,189.24,189.21,5.28513292]
[1753368832438,0.69,189.24,189.23,8.59954192]
[1753368832638,0.03,189.24,189.23,8.59954192]
[1753368833034,0.69,189.24,189.16,5.28652992]
[1753368833349,0.69,189.24,189.21,8.59954192]
[1753368833545,0.66,189.23,189.2,8.59954192]
[1753368833854,0.03,189.24,189.18,5.28593196]
[1753368833855,0.03,189.24,189.21,0.69]
[1753368834038,0.03,189.24,189.23,8.59954192]
[1753368835361,0.03,189.24,189.23,14.57411624]
[1753368836963,0.03,189.24,189.23,16.08321624]
[1753368838355,0.03,189.24,189.23,22.10821624]
[1753368840151,0.03,189.24,189.23,38.89290021]
[1753368840660,0.03,189.32,189.24,0.28432314]
[1753368840849,0.03,189.32,189.25,17.47468397]
[1753368841049,0.03,189.32,189.31,8.59954192]
[1753368842768,0.03,189.32,189.31,9.28954192]
[1753368843363,23.18,189.33,189.31,9.28954192]
[1753368843364,1e-08,189.33,189.32,49.29898397]
[1753368843541,23.18,189.41,189.37,16.78468397]
[1753368843751,23.18,189.41,189.4,8.59954192]
[1753368844144,23.18,189.41,189.4,0.69]
[1753368844344,23.18,189.41,189.4,8.59954192]
[1753368844772,23.18,189.41,189.37,17.47468397]
[1753368844953,23.18,189.41,189.36,44.4833122]
[1753368844954,23.18,189.41,189.4,8.59954192]
[1753368845140,23.18,189.41,189.36,44.4833122]
[1753368845345,23.18,189.41,189.4,8.59954192]
[1753368845752,23.18,189.41,189.38,5.28038863]
[1753368845962,23.18,189.41,189.36,31.97074916]
[1753368846173,0.66,189.4,189.36,5.28074916]
[1753368846672,0.66,189.4,189.39,8.59954192]
[1753368847059,0.66,189.4,189.36,5.28074916]
[1753368847558,0.66,189.39,189.34,45.98129794]
[1753368847752,23.18,189.41,189.38,8.59954192]
[1753368847969,23.18,189.41,189.34,45.98129794]
[1753368848357,23.84,189.41,189.39,8.59954192]
[1753368848574,0.69,189.4,189.39,8.59954192]
[1753368848869,0.72,189.4,189.39,8.59954192]
[1753368849276,0.03,189.4,189.36,0.7]
[1753368849587,0.03,189.4,189.39,13.87965174]
[1753368849755,0.03,189.4,189.39,5.28010982]
[1753368849957,0.03,189.4,189.39,13.87965174]
[1753368851559,0.03,189.4,189.39,13.62965174]
[1753368853587,0.03,189.4,189.34,79.90376043]
[1753368853588,0.72,189.4,189.35,5.28122524]
[1753368853767,0.72,189.4,189.39,8.59954192]
[1753368854074,0.03,189.4,189.39,8.59954192]
[1753368854277,0.03,189.4,189.39,67.02422589]
[1753368854472,23.18,189.41,189.4,16.78468397]
[1753368854669,23.18,189.49,189.43,26.0]
[1753368854875,23.18,189.49,189.44,40.94]
[1753368855083,0.69,189.48,189.47,8.59954192]
[1753368855586,23.18,189.49,189.47,8.59954192]
[1753368855768,23.18,189.49,189.48,8.59954192]
[1753368856081,23.18,189.49,189.46,5.27815897]
[1753368856383,0.69,189.48,189.46,8.59954192]
[1753368856580,23.18,189.49,189.44,40.94]
[1753368856581,0.69,189.47,189.44,40.94]
[1753368856766,0.69,189.46,189.45,8.59954192]
[1753368857171,0.69,189.46,189.39,5.28010982]
[1753368857373,0.69,189.46,189.4,41.0]
[1753368857684,0.69,189.46,189.44,8.59954192]
[1753368858081,0.69,189.45,189.44,8.59954192]
[1753368858380,0.69,189.48,189.44,8.59954192]
[1753368858559,0.69,189.47,189.45,8.59954192]
[1753368858760,0.69,189.46,189.38,5.28038863]
[1753368858976,0.69,189.46,189.45,8.59954192]
[1753368859373,23.87,189.49,189.45,8.59954192]
[1753368859570,0.69,189.46,189.4,5.27983104]
[1753368860080,0.69,189.46,189.44,8.59954192]
[1753368860680,0.69,189.46,189.4,5.27983104]
[1753368860987,0.69,189.46,189.44,8.59954192]
[1753368861392,0.69,189.46,189.41,40.96]
[1753368861566,0.69,189.45,189.44,8.59954192]
[1753368862285,0.69,189.47,189.44,8.59954192]
[1753368862482,0.69,189.46,189.44,8.59954192]
[1753368862688,28.45734347,189.49,189.42,5.27926765]
[1753368862871,28.45734347,189.49,189.44,8.59954192]
[1753368862872,0.69,189.45,189.44,8.59954192]
[1753368863476,0.69,189.45,189.41,8.59954192]
[1753368863774,0.69,189.44,189.41,5.27955229]
[1753368863972,0.69,189.44,189.42,8.59954192]
[1753368865186,0.69,189.48,189.43,8.59954192]
[1753368865493,0.69,189.48,189.41,5.27955229]
[1753368865494,0.69,189.47,189.41,5.27955229]
[1753368865677,0.69,189.47,189.45,8.59954192]
[1753368866195,28.45747748,189.49,189.4,41.6]
[1753368866492,0.69,189.46,189.44,8.59954192]
[1753368866666,0.69,189.45,189.44,8.59954192]
[1753368867067,0.69,189.45,189.43,8.59954192]
[1753368867392,0.69,189.44,189.43,8.59954192]
[1753368867772,37.0568696,189.49,189.43,8.59954192]
[1753368867990,0.69,189.46,189.43,8.59954192]
[1753368868285,37.0568696,189.49,189.43,8.59954192]
[1753368868286,0.69,189.45,189.43,8.59954192]
[1753368868484,0.69,189.45,189.44,8.59954192]
[1753368868700,0.69,189.47,189.44,8.59954192]
[1753368869473,0.69,189.47,189.44,13.87816981]
[1753368869687,0.69,189.47,189.45,8.59954192]
[1753368871991,23.87,189.49,189.46,8.59954192]
[1753368872183,0.69,189.48,189.46,8.59954192]
[1753368872384,23.18,189.49,189.47,8.59954192]
[1753368872699,23.18,189.49,189.48,0.7]
[1753368872901,23.21,189.49,189.48,8.59954192]
[1753368873597,23.21,189.49,189.48,13.87714377]
[1753368875710,23.21,189.49,189.46,5.27794372]
[1753368875886,28.48734762,189.49,189.44,40.62]
[1753368876076,23.21,189.49,189.44,40.62]
[1753368876278,23.21,189.49,189.48,8.59954192]
[1753368876614,23.9,189.49,189.44,40.62]
[1753368877377,0.69,189.48,189.44,40.62]
[1753368877582,0.69,189.48,189.47,8.59954192]
[1753368878013,9.28954192,189.48,189.41,5.33952822]
[1753368878197,0.69,189.47,189.44,8.59954192]
[1753368878401,31.80954192,189.49,189.44,8.59954192]
[1753368878695,0.69,189.46,189.44,8.59954192]
[1753368879587,23.91,189.49,189.44,8.59954192]
[1753368879782,0.7,189.48,189.44,13.87825271]
[1753368879978,0.7,189.47,189.41,0.06]
[1753368880183,0.7,189.47,189.45,8.59954192]
[1753368881304,23.21,189.49,189.46,8.59954192]
[1753368881484,0.7,189.48,189.44,8.59954192]
[1753368881680,0.7,189.47,189.44,13.87817342]
[1753368881990,0.7,189.47,189.45,8.59954192]
[1753368882197,23.21,189.49,189.44,5.2786315]
[1753368882497,0.7,189.48,189.45,8.59954192]
[1753368882798,0.7,189.47,189.45,8.59954192]
[1753368883404,23.21,189.49,189.45,8.59954192]
[1753368883710,0.7,189.48,189.45,8.59954192]
[1753368883907,0.7,189.47,189.45,8.59954192]
[1753368884092,0.7,189.46,189.44,8.59954192]
[1753368884293,0.7,189.46,189.45,8.59954192]
[1753368884998,0.7,189.48,189.45,8.59954192]
[1753368885197,0.7,189.47,189.45,5.26802485]
[1753368886511,23.21,189.49,189.46,5.26802485]
[1753368886687,0.7,189.48,189.46,5.26802485]
[1753368886893,23.21,189.49,189.46,5.94802485]
[1753368887089,23.21,189.49,189.43,5.27896624]
[1753368887409,23.91,189.49,189.45,5.26802485]
[1753368887592,0.7,189.48,189.46,5.26802485]
[1753368888401,23.21,189.49,189.42,18.47745749]
[1753368888709,23.91,189.49,189.48,5.26802485]
[1753368888912,23.21,189.49,189.43,0.68]
[1753368889491,0.7,189.48,189.42,7.85566191]
[1753368889690,0.7,189.48,189.46,5.26802485]
[1753368890187,0.7,189.48,189.42,21.05384583]
[1753368890389,0.7,189.47,189.45,5.26802485]
[1753368890887,23.91,189.49,189.46,5.26802485]
[1753368891090,23.21,189.49,189.48,5.26802485]
[1753368891588,29.17802485,189.49,189.42,2.57638834]
[1753368891793,29.17802485,189.49,189.41,0.06]
[1753368891794,0.7,189.48,189.41,0.06]
[1753368891990,0.7,189.48,189.44,5.26802485]
[1753368892305,5.96802485,189.48,189.42,5.27922885]
[1753368892626,0.7,189.47,189.43,5.26802485]
[1753368892827,28.48742841,189.49,189.42,5.27922885]
[1753368892828,23.21,189.49,189.46,5.26802485]
[1753368893014,23.21,189.49,189.48,5.26802485]
[1753368893830,23.21,189.49,189.48,10.5456267]
[1753368894121,23.21,189.49,189.48,11.2256267]
[1753368895126,23.21,189.49,189.48,5.95760185]
[1753368895323,23.21,189.49,189.48,5.27760185]
[1753368895616,23.21,189.49,189.44,0.52787162]
[1753368895617,34.45541473,189.49,189.41,2.66346789]
[1753368895813,5.26802485,189.46,189.41,7.93149274]
[1753368896012,5.96802485,189.45,189.41,2.66346789]
[1753368896221,0.7,189.44,189.41,2.66346789]
[1753368896518,0.7,189.43,189.41,2.66346789]
[1753368897118,0.7,189.42,189.41,2.66346789]
[1753368897818,23.21,189.49,189.41,25.80413009]
[1753368898018,23.21,189.49,189.48,8.59061249]
[1753368899400,23.21,189.49,189.46,0.68]
[1753368899797,23.21,189.49,189.48,8.59061249]
[1753368900124,23.21,189.49,189.48,14.54821434]
[1753368900621,23.21,189.49,189.48,13.86821434]
[1753368901121,23.21,189.49,189.48,14.54821434]
[1753368902316,23.21,189.49,189.48,31.33289831]
[1753368903017,23.21,189.49,189.48,5.27760185]
[1753368903201,23.21,189.49,189.48,14.54821434]
[1753368903609,23.18,189.57,189.49,16.78468397]
[1753368903829,23.18,189.57,189.5,6.6851]
[1753368904035,23.18,189.57,189.51,5.27676639]
[1753368904036,0.7,189.56,189.51,5.27676639]
[1753368904203,0.7,189.55,189.53,8.59061249]
[1753368904410,0.7,189.54,189.52,8.59061249]
[1753368904721,23.18,189.57,189.48,5.27760185]
[1753368904722,23.88,189.57,189.48,5.27760185]
[1753368904911,23.88,189.57,189.55,8.59061249]
[1753368905327,23.88,189.57,189.51,0.68]
[1753368905518,23.88,189.57,189.56,8.59061249]
[1753368905519,23.18,189.57,189.56,8.59061249]
[1753368905821,23.88,189.57,189.55,8.59061249]
[1753368906003,0.7,189.56,189.55,8.59061249]
[1753368906208,0.7,189.56,189.53,8.59061249]
[1753368906412,9.29061249,189.56,189.5,8.59061249]
[1753368906612,8.59061249,189.52,189.48,4.22415353]
[1753368906829,0.7,189.51,189.42,7.992]
[1753368907137,0.7,189.51,189.44,8.59061249]
[1753368907610,8.59061249,189.49,189.44,8.59061249]
[1753368907814,0.7,189.48,189.42,8.59061249]
[1753368908009,8.59061249,189.45,189.41,2.66346789]
[1753368908214,5.2778804,189.47,189.41,2.66346789]
[1753368908215,9.29061249,189.44,189.41,2.66346789]
[1753368908421,0.7,189.43,189.41,2.66346789]
[1753368908625,8.59061249,189.44,189.41,2.66346789]
[1753368908626,0.72,189.42,189.41,2.66346789]
[1753368908935,0.72,189.42,189.41,0.06]
[1753368909229,9.31061249,189.42,189.41,0.06]
[1753368909411,0.72,189.42,189.41,0.06]
[1753368909608,9.31061249,189.42,189.41,0.06]
[1753368910017,9.31061249,189.42,189.37,0.06]
[1753368910018,27.78806998,189.42,189.37,0.06]
[1753368910219,27.78806998,189.42,189.33,0.06]
[1753368910220,8.59061249,189.38,189.33,0.06]
[1753368910416,8.59061249,189.34,189.33,0.06]
[1753368910632,9.31061249,189.34,189.33,0.06]
[1753368911325,0.72,189.34,189.33,0.06]
[1753368911745,0.72,189.37,189.33,13.93239508]
[1753368911912,0.72,189.4,189.33,5.34178259]
[1753368912112,0.72,189.4,189.33,0.06]
[1753368912834,0.72,189.44,189.39,8.59061249]
[1753368913009,0.72,189.44,189.33,17.55468397]
[1753368913010,0.72,189.43,189.34,6.1899]
[1753368913211,8.59061249,189.41,189.34,6.1899]
[1753368913411,8.59061249,189.38,189.33,0.06]
[1753368913737,8.59061249,189.36,189.33,0.06]
[1753368914041,8.59061249,189.42,189.33,0.06]
[1753368914042,0.72,189.35,189.33,0.06]
[1753368914433,0.72,189.34,189.33,0.06]
[1753368915819,9.31061249,189.34,189.33,0.06]
[1753368917035,0.72,189.34,189.33,0.06]
[1753368917414,9.31061249,189.34,189.33,0.06]
[1753368917835,0.72,189.34,189.33,0.06]
[1753368918043,9.31061249,189.34,189.33,0.06]
[1753368918637,0.72,189.34,189.33,0.06]
[1753368918816,8.59061249,189.4,189.33,8.65061249]
[1753368919017,0.72,189.39,189.36,8.59061249]
[1753368919237,0.72,189.39,189.33,0.06]
[1753368919435,0.72,189.39,189.35,8.59061249]
[1753368919741,0.72,189.41,189.33,0.06]
[1753368920042,8.59061249,189.43,189.38,8.59061249]